Workbook

Sheet FÉLÉV
B1: ÓRARENDEM
B2: ŐSZI FÉLÉV
C3: KEZDÉS IDŐPONTJA | D3: IDŐTARTAM | F3: ÉV
C4: 09:00:00 | D4: 60 | E4: (perc)
B5: IDŐ | C5: HÉTFŐ | D5: KEDD | E5: SZERDA | F5: CSÜTÖRTÖK | G5: PÉNTEK | H5: SZOMBAT | I5: VASÁRNAP
B6: =KezdésiIdőpont+TIME(0,(ROW(A1)-1)*Időtartam,0) -> 09:00:00 | C6: Reggeli | D6: Reggeli | E6: Reggeli | F6: Reggeli | G6: Reggeli
B7: 10:00:00 | C7: Vállalatirányítás: Előadás B ép., 256-os sz.
B8: 11:00:00 | F8: Fizika: Lab. J ép., 309-es sz.
B9: 12:00:00
B10: 13:00:00
B11: 14:00:00
B12: 15:00:00
B13: 16:00:00
B14: 17:00:00
B15: 18:00:00
B16: 19:00:00
B17: 20:00:00
B18: 21:00:00
B19: 22:00:00
B20: 23:00:00
B21: 1
B22: 1.041666667
B23: 1.083333333
B24: 1.125
B25: 1.166666667
B26: 1.208333333
B27: 1.25
B28: 1.291666667
B29: 1.333333333

Sheet KREDITEK
B1: EGYETEMI
B2: KREDITTERVEZŐ
B3: Diploma | C3: =Év -> ÉV
B4: ÁLTALÁNOS ÁLLAPOT | D4: ÁLTALÁNOS ÁLLAPOT
B5: =AVERAGE(Kurzusok[OSZTÁLYZAT]) -> 3.5 | C5: =IFERROR(TEXT(AVERAGEIF(Kurzusok[ELVÉGEZVE?],"Igen",Kurzusok[OSZTÁLYZAT]),"0,00"),"0,00")&" Aktuális tanulmányi átlag" -> 3,50 Aktuális tanulmányi átlag | D5: =COUNTIF(Kurzusok[ELVÉGEZVE?],"Igen")/COUNTA(Kurzusok[KURZUS CÍME]) -> 0.6666666667 | E5: =TEXT(COUNTIF(Kurzusok[ELVÉGEZVE?],"Igen")/COUNTA(Kurzusok[KURZUS CÍME]),"0%")&" kész" -> 67% kész
B6: Megjegyzés: Ezt a kreditösszesítőt a program automatikusan tölti ki az alábbi „Egyetemi kurzusok” táblázatban megadott bejegyzések alapján.
B7: KÖVETELMÉNY | C7: ÖSSZ. KREDIT | D7: MEGSZERZETT | E7: SZÜKSÉGES
B8: Főtantárgy | C8: =IF(SUMIF(Kurzusok[KÖVETELMÉNY],KREDITEK!$B8,Kurzusok[KREDITEK])=0,"0",SUMIF(Kurzusok[KÖVETELMÉNY],KREDITEK!$B8,Kurzusok[KREDITEK])) -> 4 | D8: =SUMIFS(Kurzusok[KREDITEK],Kurzusok[KÖVETELMÉNY],KREDITEK!$B8,Kurzusok[ELVÉGEZVE?],"Igen") -> 4 | E8: =SUMIF(Kurzusok[KÖVETELMÉNY],KREDITEK!$B8,Kurzusok[KREDITEK])-SUMIFS(Kurzusok[KREDITEK],Kurzusok[KÖVETELMÉNY],KREDITEK!$B8,Kurzusok[ELVÉGEZVE?],"Igen") -> 0
B9: Melléktantárgy | C9: =IF(SUMIF(Kurzusok[KÖVETELMÉNY],KREDITEK!$B9,Kurzusok[KREDITEK])=0,"0",SUMIF(Kurzusok[KÖVETELMÉNY],KREDITEK!$B9,Kurzusok[KREDITEK])) -> 3 | D9: =SUMIFS(Kurzusok[KREDITEK],Kurzusok[KÖVETELMÉNY],KREDITEK!$B9,Kurzusok[ELVÉGEZVE?],"Igen") -> 0 | E9: =SUMIF(Kurzusok[KÖVETELMÉNY],KREDITEK!$B9,Kurzusok[KREDITEK])-SUMIFS(Kurzusok[KREDITEK],Kurzusok[KÖVETELMÉNY],KREDITEK!$B9,Kurzusok[ELVÉGEZVE?],"Igen") -> 3
B10: Választható tantárgy | C10: =IF(SUMIF(Kurzusok[KÖVETELMÉNY],KREDITEK!$B10,Kurzusok[KREDITEK])=0,"0",SUMIF(Kurzusok[KÖVETELMÉNY],KREDITEK!$B10,Kurzusok[KREDITEK])) -> 2 | D10: =SUMIFS(Kurzusok[KREDITEK],Kurzusok[KÖVETELMÉNY],KREDITEK!$B10,Kurzusok[ELVÉGEZVE?],"Igen") -> 2 | E10: =SUMIF(Kurzusok[KÖVETELMÉNY],KREDITEK!$B10,Kurzusok[KREDITEK])-SUMIFS(Kurzusok[KREDITEK],Kurzusok[KÖVETELMÉNY],KREDITEK!$B10,Kurzusok[ELVÉGEZVE?],"Igen") -> 0
B11: Általános tanulmányok | C11: =IF(SUMIF(Kurzusok[KÖVETELMÉNY],KREDITEK!$B11,Kurzusok[KREDITEK])=0,"0",SUMIF(Kurzusok[KÖVETELMÉNY],KREDITEK!$B11,Kurzusok[KREDITEK])) -> 0 | D11: =SUMIFS(Kurzusok[KREDITEK],Kurzusok[KÖVETELMÉNY],KREDITEK!$B11,Kurzusok[ELVÉGEZVE?],"Igen") -> 0 | E11: =SUMIF(Kurzusok[KÖVETELMÉNY],KREDITEK!$B11,Kurzusok[KREDITEK])-SUMIFS(Kurzusok[KREDITEK],Kurzusok[KÖVETELMÉNY],KREDITEK!$B11,Kurzusok[ELVÉGEZVE?],"Igen") -> 0
B12: Összesen | C12: =SUBTOTAL(109,KREDITEK!$C$8:$C$11) -> 9 | D12: =SUBTOTAL(109,KREDITEK!$D$8:$D$11) -> 6 | E12: =SUBTOTAL(109,KREDITEK!$E$8:$E$11) -> 3
B13: Kurzusok
B14: KURZUS CÍME | C14: KURZUS SZ. | D14: KÖVETELMÉNY | E14: KREDITEK | F14: ELVÉGEZVE? | G14: OSZTÁLYZAT | H14: FÉLÉV
B15: Kurzus 1 | C15: Szám | D15: Főtantárgy | E15: 4 | F15: Igen | G15: 4.0 | H15: 1. félév
B16: Kurzus 2 | C16: Szám | D16: Melléktantárgy | E16: 3 | F16: Nem | H16: 1. félév
B17: Kurzus 3 | C17: Szám | D17: Választható tantárgy | E17: 2 | F17: Igen | G17: 3.0 | H17: 1. félév

Sheet KÖLTSÉGVETÉS
B1: =Egyetem -> EGYETEMI
B2: KÖLTSÉGVETÉS-NYILVÁNTARTÁS
B3: SAJÁT KÖLTSÉGVETÉS | C3: =Év -> ÉV
B4: A BEVÉTEL ELKÖLTÖTT RÉSZE SZÁZALÉKBAN
B5: =TELJES_HAVI_KIADÁS/TELJES_HAVI_BEVÉTEL -> 75%
B6: =B5 -> 0.7454545455
B7: TELJES HAVI BEVÉTEL | C7: TELJES HAVI KIADÁS | D7: EGYENLEG
B8: =C10 -> 2,750 HUF | C8: ='TELJES HAVI KIADÁS'!C4+'FÉLÉVI KIADÁSOK'!D4 -> 2,050 HUF | D8: =TELJES_HAVI_BEVÉTEL-TELJES_HAVI_KIADÁS -> 700 HUF
B9: Félév hónapjai | C9: 4
B10: HAVI BEVÉTEL | C10: =SUM(HaviBevétel[ÖSSZEG]) -> 2,750 HUF
B11: TÉTEL | C11: ÖSSZEG
B12: Állandó bevétel | C12: 1,500 HUF
B13: Pénzügyi támogatás | C13: 500 HUF
B14: Hitelek | C14: 500 HUF
B15: Egyéb bevétel | C15: 250 HUF

Sheet TELJES HAVI KIADÁS
B1: =Egyetem -> EGYETEMI
B2: KÖLTSÉGVETÉS-NYILVÁNTARTÁS
B3: Havi kiadások | C3: =Év -> ÉV
B4: HAVI KIADÁSOK | C4: =SUM(HaviKiadások[ÖSSZEG]) -> 1,675 HUF
B5: TÉTEL | C5: ÖSSZEG
B6: Bérleti díj | C6: 300 HUF
B7: Közművek | C7: 50 HUF
B8: Mobiltelefon | C8: 75 HUF
B9: Élelmiszer | C9: 250 HUF
B10: Autó költsége | C10: 50 HUF
B11: Diákhitel | C11: 500 HUF
B12: Hitelkártyák | C12: 275 HUF
B13: Biztosítás | C13: 125 HUF
B14: Szórakozás | C14: 50 HUF
B15: Egyéb | C15: 0 HUF

Sheet FÉLÉVI KIADÁSOK
B1: =Egyetem -> EGYETEMI
B2: KÖLTSÉGVETÉS-NYILVÁNTARTÁS
B3: Félévi kiadások | C3: =Év -> ÉV
B4: FÉLÉVI KIADÁSOK (összesn/hó) | C4: =SUM(FéléviKiadások[ÖSSZEG]) -> 1,500 HUF | D4: =SUM(FéléviKiadások[HAVI]) -> 375 HUF
B5: TÉTEL | C5: ÖSSZEG | D5: HAVI
B6: Tandíj | C6: 750 HUF | D6: =FéléviKiadások[[#This Row],[ÖSSZEG]]/Hónapok_a_félévben -> 188 HUF
B7: Labordíjak | C7: 250 HUF | D7: =FéléviKiadások[[#This Row],[ÖSSZEG]]/Hónapok_a_félévben -> 63 HUF
B8: Könyvek | C8: 500 HUF | D8: =FéléviKiadások[[#This Row],[ÖSSZEG]]/Hónapok_a_félévben -> 125 HUF
B9: Befizetések | C9: 0 HUF | D9: =FéléviKiadások[[#This Row],[ÖSSZEG]]/Hónapok_a_félévben -> 0 HUF
B10: Közlekedés | C10: 0 HUF | D10: =FéléviKiadások[[#This Row],[ÖSSZEG]]/Hónapok_a_félévben -> 0 HUF
B11: Egyéb díjak | C11: 0 HUF | D11: =FéléviKiadások[[#This Row],[ÖSSZEG]]/Hónapok_a_félévben -> 0 HUF

Sheet KÖNYVEK
B1: =Egyetem -> EGYETEMI
B2: KÖNYVNYILVÁNTARTÁS
B3: Könyvek listája
B4: CÍM | C4: SZERZŐ | D4: KURZUS | E4: HOL LEHET MEGVENNI? | F4: ISBN-szám | G4: MEGJEGYZÉSEK
B5: Könyv címe | C5: Szerző | D5: Kurzus | E5: Helyszín | F5: Szám
B6: Könyv címe | C6: Szerző | D6: Kurzus | E6: Helyszín | F6: Szám
B7: Könyv címe | C7: Szerző | D7: Kurzus | E7: Helyszín | F7: Szám
